Cogmind - Beta 17.1 @@@ ROGUE MODE // 2026.09.19 @ 22:27:35 Player: Kite Result: Destroyed by L-31 Rogue with Katana Performance ------------- Evolutions (2) 1000 Regions Visited (8) 1600 Robots Destroyed (108) 540 Value Destroyed (3312) 3312 Prototype IDs (4) 80 Alien Tech Used (0) 0 Bonus (9243) 9243 TOTAL SCORE: 15775 Bonus ------- High Alert Combat Kills 151 Follower Combat Kills 342 Prayed to X0-1V1 5000 Major X0-1V1 Interference 1650 Entered Garrisons 600 Used RIF Installer 1500 Cogmind --------- Core Integrity 0/275 Matter 300/300 Energy 100/100 System Corruption 0% Temperature Cool (0) Movement Rolling (115) Ox1 Location -8/Garrison Parts ------- > --- POWER (1) -------- (None) > --- PROPULSION (4) --- Armored Huge Wheel Armored Huge Wheel > --- UTILITY (4) ------ Huge Storage Unit Hardened Heavy Armor Plating X0-1V1's Piety Tracker > --- WEAPON (2) ------- Greatsword > --- INVENTORY (25) --- Armored Huge Wheel Armored Huge Wheel Actuator Array Actuator Array Actuator Array Hardened Heavy Armor Plating Hardened Heavy Armor Plating Relay Coupler [NC] (37) Relay Coupler [NC] (37) Relay Coupler [NC] (35) Relay Coupler [Heavy] (20) Drone Bay (2/2) Rocket Launcher Power Maul Power Maul Power Maul Power Maul Greatsword Greatsword Peak State ------------ > --- POWER ------------ Light Nuclear Core > --- PROPULSION ------- Armored Huge Wheel Armored Huge Wheel > --- UTILITY ---------- Huge Storage Unit Hardened Heavy Armor Plating X0-1V1's Piety Tracker > --- WEAPON ----------- Power Maul Power Maul > --- INVENTORY -------- Armored Huge Wheel Armored Huge Wheel Actuator Array Actuator Array Actuator Array Hardened Heavy Armor Plating Hardened Heavy Armor Plating Relay Coupler [NC] Relay Coupler [NC] Relay Coupler [NC] Relay Coupler [Heavy] Drone Bay Rocket Launcher Power Maul Power Maul Greatsword Greatsword Greatsword [Rating: 57] Favorites ----------- Power Ion Engine Engine Ion Engine Power Core Light Nuclear Core Propulsion Light Treads Treads Light Treads Leg Aluminum Leg Wheel Armored Huge Wheel Utility High-capacity Storage Unit Device X0-1V1's Piety Tracker Storage High-capacity Storage Unit Processor Targeting Computer Hackware Hacking Suite Protection Light Armor Plating Weapon Light Assault Rifle Energy Gun Particle Gun Ballistic Gun Light Assault Rifle Ballistic Cannon Advanced Assault Cannon Launcher Rocket Launcher Impact Weapon Maul Slashing Weapon Greatsword Build | -11 -10 -9 -9 -9 -8 -8 -8 -8 ------- Run | Yrd Mat Mat Sto Gar Mat Gar Mat Gar Slots Evolved 4 | . . 2 . . 2 . . . Power . | . . . . . . . . . Propulsion 2 | . . 2 . . . . . . Utility 2 | . . . . . 2 . . . Weapon . | . . . . . . . . . Parts Attached 79 | 7 15 14 3 7 12 11 10 . Power 9 | 1 3 1 . 1 1 2 . . Engine 8 | 1 3 1 . 1 1 1 . . Core 1 | . . . . . . 1 . . Reactor . | . . . . . . . . . Propulsion 22 | 2 4 4 2 3 3 2 2 . Treads 17 | 2 4 4 2 1 2 2 . . Leg 3 | . . . . 2 1 . . . Wheel 2 | . . . . . . . 2 . Hover . | . . . . . . . . . Flight . | . . . . . . . . . Utility 23 | 1 4 5 1 2 3 4 3 . Device 10 | . 3 4 . . 1 . 2 . Storage 3 | 1 1 . . . . 1 . . Processor 2 | . . 1 . . . 1 . . Hackware 1 | . . . . . . . 1 . Protection 7 | . . . 1 2 2 2 . . Artifact . | . . . . . . . . . Weapon 25 | 3 4 4 . 1 5 3 5 . Energy Gun 8 | 2 4 . . . 2 . . . Energy Cannon . | . . . . . . . . . Ballistic Gun 9 | 1 . 2 . 1 3 2 . . Ballistic Cannon 2 | . . . . . . . 2 . Launcher 2 | . . 1 . . . 1 . . Special Weapon . | . . . . . . . . . Impact Weapon 3 | . . 1 . . . . 2 . Slashing Weapon 1 | . . . . . . . 1 . Piercing Weapon . | . . . . . . . . . Special Melee Weapon . | . . . . . . . . . Unidentified Prototypes 4 | . 1 1 . . 2 . . . Parts Lost 27 | . 7 7 1 6 1 4 1 . Power 7 | . 2 1 . 1 1 1 1 . Propulsion 12 | . 2 4 1 4 . 1 . . Utility 5 | . . 2 . 1 . 2 . . Weapon 3 | . 3 . . . . . . . Highest Loss Streak 4 | . 2 4 1 2 1 3 1 . To Critical Strikes 1 | . . . . . . 1 . . Average Backups 14 | . 8 16 19 19 19 20 18 19 Power . | . 1 . . . . . . . Propulsion 1 | . 2 . . . . 1 1 2 Utility 8 | . 2 9 13 14 14 14 11 10 Weapon 3 | . 1 5 5 5 4 4 5 7 Tool/Special . | . . . . . . . . . Unused Backups 35 | . . 8 2 1 2 4 3 15 Power 1 | . . 1 . . . . . . Propulsion 4 | . . . . . . 2 . 2 Utility 22 | . . 6 1 1 . 2 3 9 Weapon 8 | . . 1 1 . 2 . . 4 Tool/Special . | . . . . . . . . . Average Slot Usage (%) 93 | . 93 99 100 97 96 94 75 54 Engine 10 | . 13 10 11 9 7 5 . . Treads 31 | . 28 43 44 28 19 35 16 . Leg 2 | . . . . 14 16 . . . Device 7 | . 7 10 10 . 7 9 7 9 Storage 11 | . 14 11 11 11 9 9 9 9 Protection 4 | . . . . 11 17 10 9 9 Energy Gun 10 | . 23 2 . . 10 . . . Ballistic Gun 11 | . 4 19 22 18 7 17 2 . Peak Build Rating 57 | 6 21 26 27 16 34 44 57 54 Average Rating 19 | 4 7 22 25 14 28 35 46 54 On Entrance 23 | . 6 21 26 14 14 33 44 54 Avg Prop Armor Cover (%) 7 | . . . . 6 7 . . . Naked Turns . | . . . . . . . . . Heaviest Build 118 | 14 50 51 53 55 60 112 118 106 Greatest Support 80 | 40 40 80 80 80 80 80 80 56 Greatest Overweight (x) 4 | . 1 . . 2 1 1 4 1 Average Overweight (x) . | . . . . . . . 1 1 Largest Inventory Capacity 25 | 8 20 20 20 20 20 25 25 25 Average Capacity 19 | 7 16 20 20 20 20 23 25 25 Most Carried 25 | 1 10 20 20 20 20 25 25 25 Average Carried 15 | . 8 16 19 19 19 22 24 25 Final Capacity 25 | 8 20 20 20 20 20 25 25 25 Final Carried 25 | 1 10 19 19 20 19 23 25 25 Class Distribution -------------------- 65% | Mutant 34% | Scavenger-Mutant Dominant Class ---------------- Mutant | -10/Materials Mutant | -9/Materials Mutant | -9/Storage Scavenger-Mutant | -9/Garrison Scavenger-Mutant | -8/Materials Scavenger-Mutant | -8/Garrison Mutant | -8/Materials Mutant | -8/Garrison Resources | -11 -10 -9 -9 -9 -8 -8 -8 -8 ----------- Run | Yrd Mat Mat Sto Gar Mat Gar Mat Gar Matter Collected 2244 | 259 233 340 107 414 275 402 214 . Remotely . | . . . . . . . . . Salvage Created 3625 | . 1048 1083 124 340 295 286 393 56 Parts 198 | . 52 60 11 22 17 17 17 2 Haulers Intercepted 6 | . 1 3 . . 2 . . . Recyclers Shooed 3 | . . 3 . . . . . . Parts Field Recycled . | . . . . . . . . . Retrieved Matter . | . . . . . . . . . Parts Self-Destructed . | . . . . . . . . . Prevented . | . . . . . . . . . Parts Restored . | . . . . . . . . . Kills | -11 -10 -9 -9 -9 -8 -8 -8 -8 ------- Run | Yrd Mat Mat Sto Gar Mat Gar Mat Gar Combat Hostiles Destroyed 79 | . 21 20 2 11 4 10 10 1 Melee 6 | . 2 . . . . . 3 1 Guns 53 | . 19 16 2 7 3 6 . . Cannons 1 | . . . . . 1 . . . AOE 16 | . . 4 . 4 . 4 4 . Classes Destroyed 12 | . 7 3 . . . 1 . 1 Worker 5 | . 3 2 . . . . . . Builder 5 | . 3 1 . . 1 . . . Tunneler 1 | . . 1 . . . . . . Hauler 6 | . 1 3 . . 2 . . . Recycler 6 | . 3 2 . . . . 1 . Operator 3 | . . 1 1 . 1 . . . Watcher 2 | . 1 1 . . . . . . Swarmer 25 | . 6 5 . 4 . 7 3 . Grunt 40 | . 15 11 . 5 4 1 4 . Brawler 1 | . . . . . . . . 1 Sentry 11 | . . 4 2 2 . . 3 . Specialist 2 | . . . . . . 2 . . Thug 1 | . . . . . . 1 . . Best Kill Streak 6 | . 6 6 2 4 4 4 5 1 Combat Bots Only 6 | . 6 4 2 4 2 4 4 1 Max Kills in Single Turn 4 | . 1 4 1 4 2 3 2 1 Gunslinging . | . . . . . . . . . Exploded 4 | . . 2 . 4 . 2 2 . Melee 1 | . 1 . . . . . 1 1 Uniques/NPCs Destroyed . | . . . . . . . . . Combat | -11 -10 -9 -9 -9 -8 -8 -8 -8 -------- Run | Yrd Mat Mat Sto Gar Mat Gar Mat Gar Hostile Shots Fired 529 | . 135 113 18 72 13 111 62 5 Missed 150 | . 25 43 5 21 4 33 19 . Hits 379 | . 110 70 13 51 9 78 43 5 Melee 4 | . . . . . . . 1 3 Projectile 375 | . 110 70 13 51 9 78 42 2 Critical Strikes 9 | . 1 2 . . . 3 3 . Damage Taken 4982 | . 1218 941 196 647 185 924 647 224 Core 815 | . 197 168 68 69 22 105 92 94 Absorbed by Shields . | . . . . . . . . . Ignored by Resistances 50 | . . . . . 50 . . . Core Remaining (%) 59 | 100 21 . . 56 . . . . Volleys Fired 336 | . 99 105 13 57 16 41 5 . Largest 2 | . 2 2 2 2 2 2 1 . Hottest 126 | . 115 105 40 40 126 50 33 . Shots Fired 623 | . 187 207 26 85 32 81 5 . Gun 613 | . 187 205 26 84 32 79 . . Cannon . | . . . . . . . . . Launcher 10 | . . 2 . 1 . 2 5 . Special . | . . . . . . . . . Kinetic 387 | . 5 185 26 84 8 79 . . Thermal 226 | . 182 20 . . 24 . . . Explosive 10 | . . 2 . 1 . 2 5 . Electromagnetic . | . . . . . . . . . Robot Hit Streak 17 | . 10 13 5 17 5 9 2 . Robot Miss Streak 6 | . 6 3 2 2 4 2 1 . Penetration Max . | . . . . . . . . . Secondary Targets 9 | . 2 3 . 1 1 2 . . Max Gunslinging Chain 1 | . 1 1 . 1 1 1 . . Shots Hit Robots 441 | . 111 141 19 65 18 56 28 3 Core Hits 189 | . 49 62 8 24 12 21 12 1 Critical Kills . | . . . . . . . . . Critical Parts Destroyed 6 | . . 2 . 1 . . 3 . Critical Strikes 15 | . 4 2 . 2 . 1 6 . Burn 4 | . 4 . . . . . . . Destroy 4 | . . 1 . 2 . 1 . . Smash 4 | . . 1 . . . . 3 . Sever 3 | . . . . . . . 3 . Melee Attacks 41 | . . 3 . 3 . . 32 3 Impact 29 | . . 3 . 3 . . 23 . Slashing 12 | . . . . . . . 9 3 Piercing . | . . . . . . . . . Sneak Attacks 2 | . . 2 . . . . . . Combat Hostiles . | . . . . . . . . . Follow-up Attacks 2 | . . . . . . . 2 . Damage Inflicted 7364 | . 1510 1648 145 801 501 1176 1469 114 Guns 4513 | . 1498 1151 145 516 275 928 . . Cannons 168 | . . . . . 168 . . . Explosions 1421 | . . 323 . 285 58 248 507 . Melee 1229 | . . 153 . . . . 962 114 Ramming 33 | . 12 21 . . . . . . Kinetic 2686 | . 39 1015 145 516 43 928 . . Thermal 2129 | . 1459 136 . . 458 . 76 . Explosive 1287 | . . 323 . 285 . 248 431 . Electromagnetic . | . . . . . . . . . Impact 814 | . . 153 . . . . 661 . Slashing 415 | . . . . . . . 301 114 Piercing . | . . . . . . . . . Highest Corruption 15 | . . . . 15 . . . . Average Corruption 15 | . . . . 15 . . . . Corruption Purged . | . . . . . . . . . Corruption Blocked . | . . . . . . . . . Effects 3 | . . . . 3 . . . . Matter Fused 1 | . . . . 1 . . . . Energy Discharges 1 | . . . . 1 . . . . Data Loss (major) 1 | . . . . 1 . . . . Overload Shots . | . . . . . . . . . Overflow Damage 460 | . . 76 . 51 130 . 173 30 Projectiles 118 | . . . . . 118 . . . Explosions 73 | . . 8 . 51 12 . 2 . Melee 269 | . . 68 . . . . 171 30 Knockbacks 5 | . . 3 . . . . 2 . Impact 5 | . . 3 . . . . 2 . Kinetic . | . . . . . . . . . Secondary . | . . . . . . . . . Self-Inflicted Damage 144 | . . . . 47 76 21 . . Shots 3 | . . . . 1 1 1 . . Rammed 3 | . 2 1 . . . . . . Targets Rammed 6 | . 4 2 . . . . . . Kicked . | . . . . . . . . . Crushed 3 | . 2 1 . . . . . . Highest Temperature 463 | . 463 161 10 22 395 4 . . Average Temperature 94 | . 114 34 5 5 152 3 . . Received Heat Transfer 1665 | . 513 456 45 237 81 90 234 9 Effects 10 | . 8 . . . 2 . . . Shutdowns 3 | . 3 . . . . . . . Energy Bleed 1 | . 1 . . . . . . . Interference 2 | . 2 . . . . . . . Matter Decay 2 | . 1 . . . 1 . . . Short Circuit 1 | . . . . . 1 . . . Damage (minor) 1 | . 1 . . . . . . . Siege Activations . | . . . . . . . . . Martial Activations . | . . . . . . . . . Shielding Activations . | . . . . . . . . . Robots Disrupted . | . . . . . . . . . Combat Hostiles . | . . . . . . . . . Robots Corrupted 4 | . . 1 . . . . 3 . Combat Hostiles 3 | . . . . . . . 3 . Parts Fried 3 | . . . . . . . 3 . Impact Corruptions 9 | . . 3 . . . . 6 . Robots Melted . | . . . . . . . . . Combat Hostiles . | . . . . . . . . . Parts Melted 8 | . 5 . . . 3 . . . Heat Transferred 4846 | . 3826 322 . . 648 . 50 . Parts Sabotaged . | . . . . . . . . . Parts Stolen . | . . . . . . . . . Parts Stripped . | . . . . . . . . . Power Chain Reactions . | . . . . . . . . . Alert | -11 -10 -9 -9 -9 -8 -8 -8 -8 ------- Run | Yrd Mat Mat Sto Gar Mat Gar Mat Gar Maximum Alert Level 3 | . 1 1 . 2 2 3 2 1 Low Security (%) 38 | 100 68 32 100 18 . . . . Level 1 41 | . 31 67 . 57 80 9 55 100 Level 2 19 | . . . . 24 19 82 44 . Level 3 1 | . . . . . . 7 . . Level 4 . | . . . . . . . . . Level 5 . | . . . . . . . . . High Security . | . . . . . . . . . Max Security . | . . . . . . . . . Peak Influence 711 | . 347 301 122 442 564 711 501 341 Initial 346 | . . 139 115 66 215 283 346 321 Average 261 | . 144 216 102 308 296 564 375 323 Influence Increases 3458 | . 764 710 67 436 549 488 424 20 Destroy 0b10 Robot/C 1820 | . 420 400 40 220 140 360 220 20 Destroy 0b10 Robot/NC 140 | . 55 55 5 . 20 . 5 . Destroy Leader 306 | . 84 88 20 10 34 30 40 . Allied During Kill 58 | . . . . . 17 30 11 . Successful Hack 24 | . 7 5 2 . . . 10 . Select Force Hacks 60 | . 60 . . . . . . . Disable Machine 180 | . 90 30 . . 15 . 45 . Anti-Garrison Action 200 | . . . . 200 . . . . Destroy Structure 109 | . 3 15 . 6 14 23 48 . Lose Combat Pursuer 165 | . 45 15 . . 15 45 45 . Miscellaneous 396 | . . 102 . . 294 . . . Influence Decreases 3117 | . 434 767 238 96 555 213 641 173 Entered New Map 1303 | . . 191 158 36 227 153 365 173 Time Decay 1344 | . 364 506 70 . 198 . 206 . Search Patrol Dispatched 100 | . . . . . 100 . . . Lost Part 270 | . 70 70 10 60 10 40 10 . Lost Ally 100 | . . . . . 20 20 60 . Squads Dispatched 13 | . 5 3 . . 2 . 3 . Investigation 4 | . 3 1 . . . . . . Extermination . | . . . . . . . . . Reinforcement 6 | . 2 2 . . 2 . . . Assault . | . . . . . . . . . Garrison 3 | . . . . . . . 3 . Intercept . | . . . . . . . . . Searches Triggered 1 | . . . . . 1 . . . Construction Impeded 1 | . . . . . 1 . . . Haulers Reinforced . | . . . . . . . . . Active Scanning Responses . | . . . . . . . . . Cargo Convoy Interrupts . | . . . . . . . . . Stealth | -11 -10 -9 -9 -9 -8 -8 -8 -8 --------- Run | Yrd Mat Mat Sto Gar Mat Gar Mat Gar Distress Signals 11 | . 2 5 . . 1 . 3 . Communications Jammed . | . . . . . . . . . Distress Signals . | . . . . . . . . . Times Spotted 134 | . 41 31 3 11 11 17 17 3 Peak Tracking Total 7 | . 7 5 2 4 3 6 5 2 Tactical Retreats 9 | . 2 1 . . 1 3 2 . Traps | -11 -10 -9 -9 -9 -8 -8 -8 -8 ------- Run | Yrd Mat Mat Sto Gar Mat Gar Mat Gar Traps Triggered 5 | . 3 . . 1 . . . 1 Indirectly . | . . . . . . . . . Trap Hack Attempts . | . . . . . . . . . Triggered . | . . . . . . . . . Disarmed . | . . . . . . . . . Reprogrammed . | . . . . . . . . . Reused . | . . . . . . . . . Traps Extracted . | . . . . . . . . . Installed . | . . . . . . . . . Triggered . | . . . . . . . . . Machines | -11 -10 -9 -9 -9 -8 -8 -8 -8 ---------- Run | Yrd Mat Mat Sto Gar Mat Gar Mat Gar Machines Disabled 15 | . 6 2 . 3 1 . 3 . Max in Single Turn 2 | . 1 1 . 1 . . 2 . Garrison Relay 3 | . . . . 3 . . . . Phase Generator 1 | . . . . 1 . . . . Machines Repaired . | . . . . . . . . . Machines Dismantled . | . . . . . . . . . Machines Sabotaged . | . . . . . . . . . Overloaded Fab Kills . | . . . . . . . . . Hacking | -11 -10 -9 -9 -9 -8 -8 -8 -8 --------- Run | Yrd Mat Mat Sto Gar Mat Gar Mat Gar Machines Accessed 14 | . 3 3 2 3 1 . 2 . Terminals 8 | . 1 3 1 3 . . . . Fabricators . | . . . . . . . . . Repair Stations . | . . . . . . . . . Recycling Units 2 | . 2 . . . . . . . Scanalyzers 1 | . . . . . . . 1 . Garrison Access 3 | . . . 1 . 1 . 1 . Total Hacks 25 | . 5 8 2 5 1 . 4 . Successful 15 | . 3 5 2 2 1 . 2 . Failed 10 | . 2 3 . 3 . . 2 . Catastrophic 4 | . . 2 . 2 . . . . Database Lockouts . | . . . . . . . . . Manual 8 | . 6 2 . . . . . . Terminals 17 | . 3 8 1 5 . . . . Fabricators . | . . . . . . . . . Repair Stations . | . . . . . . . . . Recycling Units 2 | . 2 . . . . . . . Scanalyzers 3 | . . . . . . . 3 . Garrison Access 3 | . . . 1 . 1 . 1 . Terminal Hacks 8 | . 1 4 1 2 . . . . Part Schematic 1 | . 1 . . . . . . . Open Door 2 | . . . 1 1 . . . . Alert Level 4 | . . 4 . . . . . . Garrison Registry 1 | . . . . 1 . . . . Fabricator Hacks . | . . . . . . . . . Repair Station Hacks . | . . . . . . . . . Recycling Unit Hacks . | . . . . . . . . . Scanalyzer 1 | . . . . . . . 1 . Insert Component 1 | . . . . . . . 1 . Garrison Access Hacks 3 | . . . 1 . 1 . 1 . Unlock Access 3 | . . . 1 . 1 . 1 . Unauthorized Hacks 3 | . 2 1 . . . . . . Terminals 1 | . . 1 . . . . . . Botnet 1 | . . 1 . . . . . . Fabricators . | . . . . . . . . . Repair Stations . | . . . . . . . . . Recycling Units 2 | . 2 . . . . . . . Tunnel 2 | . 2 . . . . . . . Scanalyzers . | . . . . . . . . . Garrison Access . | . . . . . . . . . Data Cores Recovered . | . . . . . . . . . Used . | . . . . . . . . . Hacking Detections 7 | . 1 3 . 2 . . 1 . Full Trace Events 3 | . . 1 . 1 . . 1 . Feedback Events . | . . . . . . . . . Feedback Blocked . | . . . . . . . . . Robot Schematics Acquired . | . . . . . . . . . Robots Built . | . . . . . . . . . Authchips . | . . . . . . . . . Time . | . . . . . . . . . Total Robot Build Rating . | . . . . . . . . . Part Schematics Acquired 1 | . 1 . . . . . . . Parts Built . | . . . . . . . . . Authchips . | . . . . . . . . . Time . | . . . . . . . . . Total Part Build Rating . | . . . . . . . . . Part Studies Acquired . | . . . . . . . . . Parts Repaired . | . . . . . . . . . Time . | . . . . . . . . . Parts Recycled . | . . . . . . . . . Recycled Matter . | . . . . . . . . . Retrieved Matter . | . . . . . . . . . Retrieved Components . | . . . . . . . . . Parts Scanalyzed 1 | . . . . . . . 1 . Part Schematics Acquired . | . . . . . . . . . Parts Damaged 1 | . . . . . . . 1 . Bothacking | -11 -10 -9 -9 -9 -8 -8 -8 -8 ------------ Run | Yrd Mat Mat Sto Gar Mat Gar Mat Gar Used RIF Installer 3 | . . . . 1 . 2 . . Coupler Efficiency 1 | . . . . . . 1 . . Hotswap 1 | . . . . . . 1 . . Robots Hacked . | . . . . . . . . . Non-combat . | . . . . . . . . . Combat . | . . . . . . . . . Robot Hacks Applied . | . . . . . . . . . Relay Couplers Released 14 | . . . . 14 . . . . Machine Destruction 14 | . . . . 14 . . . . Fabnet Peak Effective % . | . . . . . . . . . Robots Rewired 8 | . . . . 2 . 6 . . Allies Hacked . | . . . . . . . . . Hacks Repelled . | . . . . . . . . . Allies | -11 -10 -9 -9 -9 -8 -8 -8 -8 -------- Run | Yrd Mat Mat Sto Gar Mat Gar Mat Gar Total Allies 8 | . . . . 2 . 6 . . Largest Group 6 | . . . . 2 2 6 3 . Highest-Rated Group 72 | . . . . 56 56 72 30 . Highest-Rated Ally 31 | . . . . 31 31 31 10 . Total Orders . | . . . . . . . . . Ally Attacks 61 | . . . . . 22 26 13 . Total Damage 978 | . . . . . 346 443 189 . Kills 12 | . . . . . 3 8 1 . Allies Corrupted . | . . . . . . . . . Allies Melted . | . . . . . . . . . X0-1V1 Amusement Gains 39 | . 9 20 . . . . . 10 Average Entertainment 16 | . 8 16 16 16 16 16 16 22 Good Acts 17 | . . 4 . 7 6 . . . Bad Acts 15 | . . 8 . 1 1 5 . . Intel | -11 -10 -9 -9 -9 -8 -8 -8 -8 ------- Run | Yrd Mat Mat Sto Gar Mat Gar Mat Gar Active Infowar (turns) . | . . . . . . . . . Robot Analysis Total . | . . . . . . . . . Derelict Logs Recovered . | . . . . . . . . . Drone Launches . | . . . . . . . . . Drone Recoveries . | . . . . . . . . . Exploration | -11 -10 -9 -9 -9 -8 -8 -8 -8 ------------- Run | Yrd Mat Mat Sto Gar Mat Gar Mat Gar Turns Passed 7290 | 90 2883 1378 143 772 408 1127 428 61 Spaces Moved 2652 | 53 853 623 56 293 144 448 145 37 Core 5 | 5 . . . . . . . . Treads 2540 | 48 853 623 56 291 144 448 77 . Legs 2 | . . . . 2 . . . . Wheels 105 | . . . . . . . 68 37 Hover . | . . . . . . . . . Flight . | . . . . . . . . . Fastest Speed 50 | 50 160 160 160 160 160 160 115 115 Average Speed 196 | 149 223 160 160 196 228 208 183 115 Slowest Speed 260 | 160 240 160 160 260 240 240 240 115 Overloaded Moves . | . . . . . . . . . Propulsion Burnouts . | . . . . . . . . . Robots Hopped . | . . . . . . . . . Potential Cave-ins . | . . . . . . . . . Cave-ins Triggered . | . . . . . . . . . Exploration Rate (%) 31 | 4 97 40 15 51 10 43 16 7 Regions Visited 8 Branch Regions 1 Pre-discovered Areas 2 | . 2 . . . . . . . Known Exits Taken 3 | . . . 1 . 1 . 1 . Unknown Exits Taken 3 | 1 1 1 . . . . . . Scrap Searched . | . . . . . . . . . Spaces Dug 1 | . . . . . . . 1 . Terrain Destroyed 107 | . . 26 . 6 13 3 59 . Melee 1 | . . . . . . . 1 . Projectile . | . . . . . . . . . AOE 106 | . . 26 . 6 13 3 58 . Terrain Rammed . | . . . . . . . . . Walls Destroyed . | . . . . . . . . . Machines Disabled . | . . . . . . . . . Actions | -11 -10 -9 -9 -9 -8 -8 -8 -8 --------- Run | Yrd Mat Mat Sto Gar Mat Gar Mat Gar Total 4130 | 61 1640 833 93 415 196 593 248 51 Wait 767 | . 646 36 9 31 2 . 32 11 Move 2647 | 52 852 622 56 292 144 447 145 37 Hop . | . . . . . . . . . Pick Up 89 | 1 17 29 6 7 9 13 7 . Fast Attach 40 | 7 4 7 . 4 6 4 8 . Attach 30 | . 10 8 2 2 3 3 2 . Detach 2 | . . . . . . . 2 . Swap 28 | . 4 3 1 7 3 8 2 . Drop 79 | 1 4 18 6 4 13 16 17 . Fire 336 | . 99 105 13 57 16 41 5 . Melee 37 | . . 3 . 3 . . 28 3 Ram . | . . . . . . . . . Kick . | . . . . . . . . . Crush 6 | . 4 2 . . . . . . Escape Stasis . | . . . . . . . . . Rewire 69 | . . . . 8 . 61 . . Trap . | . . . . . . . . . Miscellaneous . | . . . . . . . . . Route ------- -11/Scrapyard -10/Materials (discovered 5 exits: *Mat x3 / [*Min] / [*Sub]) -9/Materials (discovered 2 exits: *Mat / *Sto) -9/Storage -9/Garrison (discovered 3 exits: *Mat x3) -8/Materials (discovered 2 exits: Fac / Gar) -8/Garrison -8/Materials -8/Garrison History --------- Turn | Location | Event 5 | -11/Scrapyard | Discovered new exit (range 15) 91 | -11/Scrapyard | Entered Materials 310 | -10/Materials | Build established: Mutant 1022 | -10/Materials | Core integrity fell below 50% 1240 | -10/Materials | Discovered new exit (range 15) 1925 | -10/Materials | Discovered new exit (range 8) 2050 | -10/Materials | Discovered new exit (range 6) 2195 | -10/Materials | Discovered new exit (range 13) 2343 | -10/Materials | Discovered new exit (range 7) 2844 | -10/Materials | Prayed at D.C.S.S. Altar Unit 2974 | -10/Materials | Entered another Materials area 2974 | -9/Materials | Evolved 2 slots: Propulsion x2 3111 | -9/Materials | X0-1V1 added 0b10 threat records associated with you (minor) 3209 | -9/Materials | Discovered new exit (range 5) 3744 | -9/Materials | Lost 4 parts (3n1u) 3943 | -9/Materials | Discovered new exit (range 8) 3965 | -9/Materials | Identified exit to Materials 4170 | -9/Materials | X0-1V1 sent hostile G-34 Mercenary (x4) 4208 | -9/Materials | Energy generation permanently improved by X0-1V1 (+15; -150 max core) 4352 | -9/Materials | Entered Storage 4495 | -9/Storage | Identified exit to Garrison 4495 | -9/Storage | Entered Garrison 4547 | -9/Garrison | X0-1V1 destroyed Phase Generator 4547 | -9/Garrison | Phase Generator disabled 4631 | -9/Garrison | Triggered checkpoint 4652 | -9/Garrison | Discovered exit to Materials (range 61) 4652 | -9/Garrison | Discovered exit to Materials (range 55) 4652 | -9/Garrison | Discovered exit to Materials (range 77) 4669 | -9/Garrison | Garrison Relay disabled 4710 | -9/Garrison | Core integrity restored by X0-1V1 (+45) 4860 | -9/Garrison | X0-1V1 activates XOMVISION 4869 | -9/Garrison | Triggered checkpoint 4915 | -9/Garrison | Build established: Scavenger-Mutant 4931 | -9/Garrison | Installed Relay Interface Framework 4954 | -9/Garrison | Garrison Relay disabled 5078 | -9/Garrison | Garrison Relay disabled 5195 | -9/Garrison | System corruption reached 10% 5267 | -9/Garrison | Entered Materials 5267 | -8/Materials | Accompanied by 2 allies 5267 | -8/Materials | Evolved 2 slots: Utility x2 5521 | -8/Materials | Heat dissipation permanently improved by X0-1V1 (+25; -125 max core) 5575 | -8/Materials | Identified exit to Factory 5575 | -8/Materials | X0-1V1 revealed exit location to -7/Factory 5594 | -8/Materials | X0-1V1 added 0b10 threat records associated with you (major) 5667 | -8/Materials | Search patrols dispatched 5675 | -8/Materials | Identified exit to Garrison 5675 | -8/Materials | Entered Garrison 5675 | -8/Garrison | Accompanied by 1 ally 5690 | -8/Garrison | Expanded RIF knowledge: Coupler Efficiency 5739 | -8/Garrison | Triggered checkpoint 5804 | -8/Garrison | Expanded RIF knowledge: Hotswap 5893 | -8/Garrison | Triggered checkpoint 6267 | -8/Garrison | Triggered checkpoint 6302 | -8/Garrison | Lost 3 allies 6311 | -8/Garrison | Triggered checkpoint 6363 | -8/Garrison | Lost 3 parts (1p2u) 6768 | -8/Garrison | Discovered new exit (range 15) 6802 | -8/Garrison | Entered Materials 6802 | -8/Materials | Accompanied by 3 allies 7096 | -8/Materials | Core integrity fell below 50% 7103 | -8/Materials | Lost 3 allies 7230 | -8/Materials | Identified exit to Garrison 7230 | -8/Materials | Entered Garrison 7251 | -8/Garrison | Core integrity fell below 20% 7268 | -8/Garrison | Triggered checkpoint 7291 | -8/Garrison | Destroyed by L-31 Rogue with Katana Last Messages --------------- 07211_ K-01 Serf collects debris. 07211_ K-01 Serf destroyed. 07214_ K-01 Serf collects debris. 07227_ U-05 Engineer lays Concrete. 07230_ Connecting with Garrison Access... >>Unlock Access door unlocked. 07230_ EXIT=UNLOCKED: GARRISON LOCATION=GARRISON GOAL=ESCAPE 07250_ Triggered Fusion Bomb Trap. 07250_ An explosion rips through the floor. 07250_ X0-1V1 is mildly amused. 07251_ The unstable cave ceiling collapses. 07264_ Detecting nearby RIF Installer. 07268_ Beams of light sweep through the air. An alarm sounds. 07284_ B-36 Bruiser destroyed. 07290_ Destroyed Melee Analysis Suite. 07291_ X0-1V1 guffaws! Map ----- +----------------------------------------------------+ | | | | | ?????????????????????????????????????????????????? | | ?????????????????????????????????????????????????? | | ?????????????????????????????????????????????????? | | ?????????????????????????????????????????????????? | | ?????????????????????????????????????????????????? | | ?????????????????????????????????????????????????? | | ?????????????????????????????????????????????????? | | ?????????????????????????????????????????????????? | | ?????????????????????????????????????????????????? | | ?????????????????????????????????????????????????? | | ?????????????????????????????????""""????????????? | | ????????????????????????????????????"????????????? | | ?????????????????????????????????""""????????????? | | ?????????????????????????????????????????????????? | | ?????????????????????????????????????????????????? | | ?????????????????????????????????????????????????? | | ?????????????????????????????????????????????????? | | ?????????????????????????????????????????????????? | | ?????????????????????????????????????????????????? | | ????????????????#????????????????????????????????? | | ????????????????# ???????????####???????????????? | | ??????????????### ######???! !????????????????? | | ?????????# /l*#???! !????????????????? | | ??????????????###########@#???! !????????????????? | | ????????????????????????#Y#??## #????????????????? | | ????????????????????????+ #?? ###??????????????? | | ????????????????????????# #### ##?????????????? | | ????????????????????????# ## ! #?????????????? | | ????????????????????????# ## ! #?????????????? | | ????????????????????????# ## ##?????????????? | | ????????????????????????# ### #?????????????? | | ????????????????????????# ##?????????????? | | ????????????????????????# ## #?????????????? | | ????????????????????????# ## ##?????????????? | | ????????????????????????# #########??????????????? | | ????????????????????????# #???# #??????????????? | | ??????????????????????### ##### #??????????????? | | ??????????????????????# #??????????????? | | ??????????????????????# #??????????????? | | ??????????????????????# ##########??????????????? | | ??????????????????????# ????????????????????????? | | ??????????????????????# ????????????????????????? | | ??????????????????????# ????????????????????????? | | ??????????????????????# ????????????????????????? | | ?????????????????????? ????????????????????????? | | ?????????????????????? ????????????????????????? | | ??????????????????????###????????????????????????? | | ?????????????????????????????????????????????????? | +----------------------------------------------------+ Best States ------------- Heat Dissipation 58 Energy Generation 29 Energy Capacity 280 Matter Stores 555 Matter Capacity 700 Sight Range 20 Terrain Scan Density 10 Armor Coverage 600 Resistance: TH 20 Evasion (%) 40 Targeting Accuracy 5 Recoil Reduction 4 Offensive Hacking 10 Item Schematics ----------------- Huge Storage Unit | -10/Materials | Hacked Robot Schematics ------------------ None Fabricated ------------ Nothing Repaired ---------- Nothing Studied --------- None Alien Tech Used ----------------- None Achievements -------------- None Challenges ------------ None Game ------ Seed TiamatJunkDissipator Manual? 0 Play Time 00:36:50 Cumulative 654.8 hours Start 2026.09.19 @ 21:01:59 End 2026.09.19 @ 22:27:35 Sessions 1 Manual Loads 0 Difficulty Rogue Special Mode None Game No. 518 Rogue 518 Adventurer 0 Explorer 0 Win Type - Total 24 Types 14/0/5/1/0/0/0/2/0/2 Lore% 71 Gallery% 75 Achievement% 73 Wizard Run 0 Options --------- Layout 1 ASCII 0 Keyboard 0 Movement Mouse Keybinds 0 Fullscreen 2 Font 24/Cog Map View 50x35 Zoom Use 44% Tactical HUD 1 Map Filters NONE Filters NONE Steam 1 RUN: 21859eb9-eacf-4aa7-ac2f-9133d1c15e44